bitfinex-derivatives/quotes_BNBF0:USTF0_20251219
["timestamp","ask_amount","ask_price","bid_price","bid_amount"]
[1766148922938,1.18267104,846.5,845.85,0.88644198]
[1766148923243,1.18267104,846.49,845.85,0.88644198]
[1766148923540,1.18267104,846.48,845.85,0.88644198]
[1766148923737,0.20567011,846.53,845.85,0.88644198]
[1766148924040,1.18267106,846.52,845.85,0.88644198]
[1766148924242,1.18267106,846.51,845.85,0.88644198]
[1766148924439,1.18267106,846.5,845.85,0.88644198]
[1766148924642,1.18267106,846.49,845.85,0.88644198]
[1766148924842,0.20567011,846.53,845.85,0.88644198]
[1766148925043,1.18267106,846.52,845.85,0.88644198]
[1766148925242,1.18267106,846.51,845.85,0.88644198]
[1766148925539,1.18267106,846.5,845.85,0.88644198]
[1766148925742,1.18267106,846.49,845.85,0.88644198]
[1766148925943,0.20567011,846.53,845.85,0.88644198]
[1766148926143,1.18267101,846.52,845.85,0.88644198]
[1766148926338,1.18267101,846.51,845.85,0.88644198]
[1766148926541,1.18267101,846.5,845.85,0.88644198]
[1766148926841,1.18267101,846.49,845.85,0.88644198]
[1766148927043,0.20567011,846.53,845.85,0.88644198]
[1766148927342,1.18266836,846.52,845.85,0.88644198]
[1766148927541,1.18266836,846.51,845.85,0.88644198]
[1766148927744,1.18266836,846.5,845.85,0.88644198]
[1766148927942,1.18266836,846.49,845.85,0.88644198]
[1766148928241,0.20567011,846.53,845.85,0.88644198]
[1766148928445,1.1826684,846.52,845.85,0.88644198]
[1766148928643,1.1826684,846.51,845.85,0.88644198]
[1766148928847,1.1826684,846.5,845.85,0.88644198]
[1766148929044,1.1826684,846.49,845.85,0.88644198]
[1766148929345,0.20567011,846.53,845.85,0.88644198]
[1766148929550,1.18266858,846.52,845.85,0.88644198]
[1766148929843,1.18266858,846.51,845.85,0.88644198]
[1766148930146,0.20567011,846.53,845.85,0.88644198]
[1766148930147,1.18266858,846.5,845.85,0.88644198]
[1766148930447,1.18266858,846.49,845.85,0.88644198]
[1766148930648,0.20567011,846.53,845.85,0.88644198]
[1766148930845,1.18266858,846.52,845.85,0.88644198]
[1766148931147,1.18266858,846.51,845.85,0.88644198]
[1766148931348,1.18266858,846.5,845.85,0.88644198]
[1766148931548,0.20567011,846.53,845.85,0.88644198]
[1766148931549,1.18266858,846.49,845.85,0.88644198]
[1766148931744,0.20567011,846.53,845.85,0.88644198]
[1766148931948,1.18266852,846.52,845.85,0.88644198]
[1766148932144,1.18266852,846.51,845.85,0.88644198]
[1766148932345,1.18266852,846.5,845.85,0.88644198]
[1766148932549,1.18266852,846.49,845.85,0.88644198]
[1766148932750,0.20567011,846.53,845.85,0.88644198]
[1766148932952,1.18266856,846.52,845.85,0.88644198]
[1766148933150,1.18266856,846.51,845.85,0.88644198]
[1766148933346,1.18266856,846.5,845.85,0.88644198]
[1766148933648,1.18266856,846.49,845.85,0.88644198]
[1766148933846,0.20567011,846.53,845.85,0.88644198]
[1766148934047,1.18266856,846.52,845.85,0.88644198]
[1766148934349,1.18266856,846.51,845.85,0.88644198]
[1766148934549,1.18266856,846.5,845.85,0.88644198]
[1766148934758,1.18266856,846.49,845.85,0.88644198]
[1766148935045,0.20567011,846.53,845.84,0.88644198]
[1766148935251,1.1826738,846.52,845.84,0.88644198]
[1766148935550,1.1826738,846.51,845.84,0.88644198]
[1766148935849,1.1826738,846.5,845.71,0.88644198]
[1766148936045,1.1826738,846.49,845.67,0.88644198]
[1766148936248,1.1826738,846.48,845.65,0.88644198]
[1766148936445,1.1826738,846.47,845.65,0.88644198]
[1766148936645,1.1826738,846.46,845.65,0.88644198]
[1766148936846,1.1826738,846.45,845.65,0.88644198]
[1766148937045,0.20567011,846.53,845.65,0.88644198]
[1766148937245,1.1828858,846.52,845.64,0.88644198]
[1766148937551,1.1828858,846.51,845.64,0.88644198]
[1766148937747,1.1828858,846.5,845.65,0.88644198]
[1766148937946,1.1828858,846.49,845.65,0.88644198]
[1766148938245,1.1828858,846.48,845.64,0.88644198]
[1766148938447,1.1828858,846.47,845.65,0.88644198]
[1766148938651,1.1828858,846.46,845.65,0.88644198]
[1766148938851,1.1828858,846.45,845.65,0.88644198]
[1766148939050,1.1828858,846.44,845.65,0.88644198]
[1766148939252,1.1828858,846.43,845.64,0.88644198]
[1766148939551,1.1828858,846.42,845.64,0.88644198]
[1766148939750,1.1828858,846.41,845.64,0.88644198]
[1766148939947,1.1828858,846.4,845.64,0.88644198]
[1766148940151,1.1828858,846.39,845.64,0.88644198]
[1766148940348,0.20567011,846.53,845.63,0.88644198]
[1766148940652,1.18189083,846.52,845.63,0.88644198]
[1766148940852,1.18189083,846.51,845.63,0.88644198]
[1766148941153,1.18189083,846.5,845.63,0.88644198]
[1766148941353,1.18189083,846.49,845.63,0.88644198]
[1766148941550,1.18189083,846.48,845.63,0.88644198]
[1766148941749,1.18189083,846.47,845.63,0.88644198]
[1766148941948,1.18189083,846.46,845.63,0.88644198]
[1766148942148,1.18189083,846.45,845.63,0.88644198]
[1766148942351,1.18189083,846.44,845.62,0.88644198]
[1766148942549,1.18189083,846.43,845.62,0.88644198]
[1766148942849,1.18189083,846.42,845.62,0.88644198]
[1766148943052,1.18189083,846.41,845.62,0.88644198]
[1766148943250,0.20567011,846.53,845.62,0.88644198]
[1766148943453,1.18151656,846.52,845.62,0.88644198]
[1766148943648,1.18151656,846.51,845.62,0.88644198]
[1766148943850,1.18151656,846.5,845.62,0.88644198]
[1766148944051,1.18151656,846.49,845.62,0.88644198]
[1766148944253,1.18151656,846.48,845.61,0.88644198]
[1766148944457,1.18151656,846.47,845.61,0.88644198]
[1766148944650,1.18151656,846.46,845.61,0.88644198]
[1766148944849,1.18151656,846.45,845.61,0.88644198]
[1766148945150,1.18151656,846.44,845.61,0.88644198]
[1766148945349,0.20567011,846.53,845.64,0.88644198]
[1766148945549,1.1813481,846.52,845.64,0.88644198]
[1766148945753,1.1813481,846.51,845.64,0.88644198]
[1766148945954,1.1813481,846.5,845.64,0.88644198]
[1766148946149,1.1813481,846.49,845.64,0.88644198]
[1766148946350,0.20567011,846.53,845.64,0.88644198]
[1766148946351,1.1813481,846.48,845.64,0.88644198]
[1766148946552,1.1813481,846.47,845.64,0.88644198]
[1766148946751,1.1813481,846.46,845.64,0.88644198]
[1766148946950,1.1813481,846.45,845.64,0.88644198]
[1766148947156,0.20567011,846.53,845.64,0.88644198]
[1766148947352,1.18123611,846.52,845.63,0.88644198]
[1766148947554,1.18123611,846.51,845.63,0.88644198]
[1766148947755,1.18123611,846.5,845.63,0.88644198]
[1766148948057,1.18123611,846.49,845.63,0.88644198]
[1766148948254,1.18123611,846.48,845.63,0.88644198]
[1766148948455,1.18123611,846.47,845.63,0.88644198]
[1766148948757,1.18123611,846.46,845.63,0.88644198]
[1766148948954,1.18123611,846.45,845.63,0.88644198]
[1766148949153,1.17620544,846.7,845.63,0.88644198]
[1766148949359,1.18164602,846.69,845.63,0.88644198]
[1766148949556,0.20565857,846.33,845.63,0.88644198]
[1766148949759,1.17620544,846.7,845.63,0.88644198]
[1766148949958,0.20564398,846.43,845.63,0.88644198]
[1766148952868,0.20564398,846.43,845.61,0.88644198]
[1766148960870,0.20564398,846.43,845.65,0.88644198]
[1766148968379,0.20564398,846.43,845.66,0.88644198]
[1766148972682,0.20564398,846.43,845.68,0.88644198]
[1766148976288,0.20564398,846.43,845.69,0.88644198]
[1766148981287,0.20564398,846.43,845.7,0.88644198]
[1766148986292,1.17620544,846.83,845.81,0.88644198]
[1766148986497,0.20560875,846.57,845.81,0.88644198]
[1766148990501,1.17620544,846.83,845.81,0.88644198]
[1766148990795,1.18099815,846.82,845.81,0.88644198]
[1766148990999,1.18099815,846.81,845.81,0.88644198]
[1766148991200,1.18099815,846.8,845.81,0.88644198]
[1766148991397,1.18099815,846.79,845.8,0.88644198]
[1766148991600,1.18099815,846.78,845.8,0.88644198]
[1766148991799,1.18099815,846.77,845.8,0.88644198]
[1766148991999,1.18099815,846.76,845.8,0.88644198]
[1766148992198,1.18099815,846.75,845.81,0.88644198]
[1766148992401,1.18099815,846.74,845.8,0.88644198]
[1766148992600,1.18099815,846.73,845.8,0.88644198]
[1766148992901,1.18099815,846.72,845.8,0.88644198]
[1766148993101,1.18099815,846.71,845.8,0.88644198]
[1766148993302,1.18099815,846.7,845.8,0.88644198]
[1766148993501,1.18099815,846.69,845.8,0.88644198]
[1766148993798,1.18099815,846.68,845.8,0.88644198]
[1766148993997,1.18099815,846.67,845.8,0.88644198]
[1766148994203,1.18099815,846.66,845.8,0.88644198]
[1766148994399,0.20561178,846.52,845.8,0.88644198]
[1766148998306,0.20561178,846.52,845.79,0.88644198]
[1766149011125,0.20561178,846.52,845.8,0.88644198]
[1766149011325,1.17620544,846.91,845.86,0.88644198]
[1766149011526,1.18058144,846.9,845.92,0.88644198]
[1766149011727,0.20559235,846.59,845.92,0.88644198]
[1766149012223,0.20559235,846.59,845.91,0.88644198]
[1766149014329,0.20559235,846.59,845.9,0.88644198]
[1766149017429,0.20559235,846.59,845.89,0.88644198]
[1766149018226,0.20559235,846.59,845.9,0.88644198]
[1766149018430,0.20559235,846.59,845.89,0.88644198]
[1766149021332,0.20559235,846.59,845.84,0.88644198]
[1766149026834,0.20559235,846.59,845.79,0.88644198]
[1766149027033,0.20559235,846.59,845.76,0.88644198]
[1766149027734,1.17861713,846.58,845.72,0.88644198]
[1766149027934,0.20559235,846.59,845.42,1.97831015]
[1766149027935,1.17861713,846.57,845.71,0.88644198]
[1766149028135,0.20559235,846.59,845.71,0.88644198]
[1766149028431,1.17886434,846.58,845.71,0.88644198]
[1766149028633,1.17886434,846.57,845.71,0.88644198]
[1766149028929,0.20559235,846.59,845.71,0.88644198]
[1766149029134,1.17899922,846.58,845.71,0.88644198]
[1766149029334,0.20559235,846.59,845.71,0.88644198]
[1766149029630,1.17904936,846.58,845.71,0.88644198]
[1766149029834,1.17904936,846.57,845.71,0.88644198]
[1766149030035,1.17904936,846.56,845.71,0.88644198]
[1766149030231,1.1791859,846.55,845.67,0.88644198]
[1766149030534,1.1791859,846.54,845.67,0.88644198]
[1766149030730,1.1791859,846.54,845.52,1.17994505]
[1766149030731,1.1791859,846.53,845.63,0.88644198]
[1766149030934,1.1791859,846.52,845.63,0.88644198]
[1766149031230,1.1791859,846.51,845.63,0.88644198]
[1766149031433,1.1791859,846.5,845.63,0.88644198]
[1766149031632,1.1791859,846.49,845.63,0.88644198]
[1766149031833,0.20559235,846.59,845.63,0.88644198]
[1766149032031,1.17928518,846.58,845.63,0.88644198]
[1766149032231,1.17928518,846.57,845.63,0.88644198]
[1766149032432,0.20559235,846.59,845.63,0.88644198]
[1766149032433,1.17928518,846.56,845.63,0.88644198]
[1766149032633,1.17928518,846.55,845.63,0.88644198]
[1766149032832,1.17928518,846.54,845.63,0.88644198]
[1766149033033,1.17928518,846.53,845.63,0.88644198]
[1766149033235,1.17928518,846.52,845.63,0.88644198]
[1766149033436,1.17928518,846.51,845.63,0.88644198]
[1766149033637,1.17928518,846.5,845.63,0.88644198]
[1766149033838,1.17928518,846.49,845.63,0.88644198]
[1766149034138,0.20559235,846.59,845.63,0.88644198]
[1766149034338,1.17919853,846.58,845.63,0.88644198]
[1766149034539,1.17919853,846.57,845.63,0.88644198]
[1766149034738,1.17919853,846.56,845.63,0.88644198]
[1766149034938,1.17919853,846.55,845.63,0.88644198]
[1766149035139,1.17919853,846.54,845.63,0.88644198]
[1766149035340,1.17919853,846.53,845.63,0.88644198]
[1766149035538,1.17919853,846.52,845.63,0.88644198]
[1766149035738,1.17919853,846.51,845.63,0.88644198]
[1766149035940,1.17919853,846.5,845.63,0.88644198]
[1766149036138,1.17919853,846.49,845.63,0.88644198]
[1766149036341,0.20559235,846.59,845.63,0.88644198]
[1766149036538,1.17948025,846.58,845.63,0.88644198]
[1766149036840,1.17948025,846.57,845.63,0.88644198]
[1766149037138,1.17948025,846.56,845.63,0.88644198]
[1766149037338,1.17948025,846.55,845.63,0.88644198]
[1766149037538,1.17948025,846.54,845.63,0.88644198]
[1766149037841,1.17948025,846.53,845.63,0.88644198]
[1766149038041,1.17948025,846.52,845.63,0.88644198]
[1766149038337,1.17948025,846.51,845.63,0.88644198]
[1766149038639,1.17948025,846.5,845.61,0.88644198]
[1766149038843,1.17948025,846.49,845.61,0.88644198]
[1766149039142,1.17948025,846.48,845.61,0.88644198]
[1766149039342,0.20559235,846.59,845.61,0.88644198]
[1766149039639,1.1787625,846.58,845.6,0.88644198]
[1766149039942,1.1787625,846.57,845.6,0.88644198]
[1766149040142,1.1787625,846.56,845.6,0.88644198]
[1766149040336,1.1787625,846.55,845.6,0.88644198]
[1766149040641,0.20559235,846.59,845.6,0.88644198]
[1766149040642,1.1787625,846.54,845.6,0.88644198]
[1766149040843,1.1787625,846.53,845.6,0.88644198]
[1766149041141,1.1787625,846.52,845.6,0.88644198]
[1766149041341,1.1787625,846.51,845.6,0.88644198]
[1766149041638,1.1787625,846.5,845.6,0.88644198]
[1766149041838,1.1787625,846.49,845.6,0.88644198]
[1766149042042,1.1787625,846.48,845.6,0.88644198]
[1766149042242,0.20559235,846.59,845.6,0.88644198]
[1766149042443,1.17852548,846.58,845.6,0.88644198]
[1766149042643,1.17852548,846.57,845.6,0.88644198]
[1766149042841,1.17852548,846.56,845.6,0.88644198]
[1766149043040,1.17852548,846.55,845.6,0.88644198]
[1766149043341,1.17852548,846.54,845.6,0.88644198]
[1766149043544,1.17852548,846.53,845.6,0.88644198]
[1766149043744,1.17852548,846.52,845.6,0.88644198]
[1766149043945,1.17852548,846.51,845.6,0.88644198]
[1766149044147,1.17852548,846.5,845.6,0.88644198]
[1766149044446,1.17852548,846.49,845.6,0.88644198]
[1766149044743,0.20559235,846.59,845.6,0.88644198]
[1766149044941,1.17842657,846.58,845.6,0.88644198]
[1766149045142,1.17842657,846.57,845.6,0.88644198]
[1766149045347,1.17842657,846.56,845.59,0.88644198]
[1766149045645,1.17842657,846.55,845.59,0.88644198]
[1766149045845,1.17842657,846.54,845.59,0.88644198]
[1766149046048,1.17842657,846.53,845.59,0.88644198]
[1766149046246,1.17842657,846.52,845.59,0.88644198]
[1766149046542,1.17842657,846.51,845.59,0.88644198]
[1766149046742,1.17842657,846.5,845.59,0.88644198]
[1766149046942,1.17842657,846.49,845.59,0.88644198]
[1766149047143,0.20559235,846.59,845.59,0.88644198]
[1766149047344,1.17823255,846.58,845.59,0.88644198]
[1766149047542,1.17823255,846.57,845.59,0.88644198]
[1766149047847,1.17823255,846.56,845.59,0.88644198]
[1766149048147,1.17823255,846.55,845.59,0.88644198]
[1766149048346,1.17823255,846.54,845.59,0.88644198]
[1766149048650,1.17823255,846.53,845.59,0.88644198]
[1766149048847,1.17823255,846.52,845.59,0.88644198]
[1766149049045,1.17823255,846.51,845.59,0.88644198]
[1766149049248,1.17823255,846.5,845.59,0.88644198]
[1766149049448,0.20559235,846.59,845.58,0.88644198]
[1766149049649,1.17810424,846.58,845.58,0.88644198]
[1766149049850,1.17810424,846.57,845.58,0.88644198]
[1766149050056,1.17810424,846.56,845.58,0.88644198]
[1766149050251,1.17810424,846.55,845.58,0.88644198]
[1766149050551,1.17810424,846.54,845.58,0.88644198]
[1766149050746,1.17810424,846.53,845.58,0.88644198]
[1766149050949,1.17810424,846.52,845.58,0.88644198]
[1766149051146,1.17810424,846.51,845.58,0.88644198]
[1766149051450,1.17810424,846.5,845.58,0.88644198]
[1766149051649,0.20559235,846.59,845.58,0.88644198]
[1766149051845,1.17799227,846.58,845.58,0.88644198]
[1766149052145,1.17799227,846.57,845.58,0.88644198]
[1766149052446,1.17799227,846.56,845.58,0.88644198]
[1766149052646,1.17799227,846.55,845.58,0.88644198]
[1766149052946,1.17799227,846.54,845.56,0.88644198]
[1766149053151,1.17799227,846.53,845.56,0.88644198]
[1766149053351,1.17799227,846.52,845.56,0.88644198]
[1766149053550,1.17799227,846.51,845.56,0.88644198]
[1766149053748,1.17799227,846.5,845.56,0.88644198]
[1766149053947,1.17799227,846.49,845.56,0.88644198]
[1766149054251,0.20559235,846.59,845.56,0.88644198]
[1766149054451,1.1771893,846.58,845.56,0.88644198]
[1766149054646,1.1771893,846.57,845.56,0.88644198]
[1766149054851,1.1771893,846.56,845.56,0.88644198]
[1766149055050,1.1771893,846.55,845.56,0.88644198]
[1766149055248,1.1771893,846.54,845.56,0.88644198]
[1766149055451,1.1771893,846.53,845.55,0.88644198]
[1766149055651,1.1771893,846.52,845.55,0.88644198]
[1766149055948,1.1771893,846.51,845.55,0.88644198]
[1766149056148,1.1771893,846.5,845.55,0.88644198]
[1766149056453,1.1771893,846.49,845.55,0.88644198]
[1766149056653,0.20559235,846.59,845.55,0.88644198]
[1766149056852,1.17708374,846.58,845.55,0.88644198]
[1766149057048,1.17708374,846.57,845.55,0.88644198]
[1766149057252,1.17708374,846.56,845.55,0.88644198]
[1766149057552,1.17708374,846.55,845.55,0.88644198]
[1766149057850,1.17708374,846.54,845.55,0.88644198]
[1766149058048,1.17708374,846.53,845.55,0.88644198]
[1766149058252,1.17708374,846.52,845.55,0.88644198]
[1766149058452,1.17708374,846.51,845.55,0.88644198]
[1766149058649,1.17708374,846.5,845.55,0.88644198]
[1766149058955,0.20559235,846.59,845.55,0.88644198]
[1766149059154,1.17698942,846.58,845.55,0.88644198]
[1766149059354,1.17698942,846.57,845.55,0.88644198]
[1766149059649,1.17698942,846.56,845.55,0.88644198]
[1766149059853,1.17698942,846.55,845.55,0.88644198]
[1766149060052,1.17698942,846.54,845.54,0.88644198]
[1766149060255,1.17698942,846.53,845.54,0.88644198]
[1766149060455,1.17698942,846.52,845.54,0.88644198]
[1766149060653,1.17698942,846.51,845.54,0.88644198]
[1766149060857,0.20559235,846.59,845.54,0.88644198]
[1766149060858,1.17698942,846.5,845.54,0.88644198]
[1766149061052,0.20559235,846.59,845.54,0.88644198]
[1766149061254,1.17691069,846.58,845.54,0.88644198]
[1766149061457,1.17691069,846.57,845.54,0.88644198]
[1766149061661,1.17691069,846.56,845.54,0.88644198]
[1766149061858,1.17691069,846.55,845.54,0.88644198]
[1766149062155,1.17691069,846.54,845.54,0.88644198]
[1766149062358,1.17691069,846.53,845.54,0.88644198]
[1766149062560,1.17691069,846.52,845.54,0.88644198]
[1766149062858,1.17691069,846.51,845.54,0.88644198]
[1766149063058,1.17691069,846.5,845.54,0.88644198]
[1766149063258,0.20559235,846.59,845.54,0.88644198]
[1766149063454,1.17683046,846.58,845.54,0.88644198]
[1766149063658,1.17683046,846.57,845.54,0.88644198]
[1766149063958,1.17683046,846.56,845.54,0.88644198]
[1766149064156,1.17683046,846.55,845.54,0.88644198]
[1766149064356,1.17683046,846.54,845.54,0.88644198]
[1766149064555,1.17683046,846.53,845.54,0.88644198]
[1766149064753,1.17683046,846.52,845.54,0.88644198]
[1766149064958,1.17683046,846.51,845.54,0.88644198]
[1766149065158,1.17683046,846.5,845.54,0.88644198]
[1766149065356,0.20559235,846.59,845.54,0.88644198]
[1766149065558,1.17679173,846.58,845.54,0.88644198]
[1766149065760,1.17679173,846.57,845.54,0.88644198]
[1766149065957,1.17679173,846.56,845.54,0.88644198]
[1766149066162,1.17679173,846.55,845.54,0.88644198]
[1766149066462,1.17679173,846.54,845.54,0.88644198]
[1766149066761,1.17679173,846.53,845.54,0.88644198]
[1766149067058,1.17679173,846.52,845.54,0.88644198]
[1766149067263,1.17679173,846.51,845.54,0.88644198]
[1766149067463,1.17679173,846.5,845.54,0.88644198]
[1766149067664,0.20559235,846.59,845.54,0.88644198]
[1766149067864,1.17676722,846.58,845.54,0.88644198]
[1766149068164,1.17676722,846.57,845.54,0.88644198]
[1766149068460,1.17676722,846.56,845.54,0.88644198]
[1766149068666,1.17676722,846.55,845.54,0.88644198]
[1766149068861,1.17676722,846.54,845.54,0.88644198]
[1766149069066,1.17676722,846.53,845.54,0.88644198]
[1766149069364,1.17676722,846.52,845.54,0.88644198]
[1766149069564,1.17676722,846.51,845.54,0.88644198]
[1766149069772,1.17676722,846.5,845.54,0.88644198]
[1766149069967,0.20559235,846.59,845.54,0.88644198]
[1766149070166,1.17677324,846.58,845.54,0.88644198]
[1766149070467,1.17677324,846.57,845.54,0.88644198]
[1766149070766,1.17677324,846.56,845.54,0.88644198]
[1766149070967,1.17677324,846.55,845.54,0.88644198]
[1766149071266,1.17677324,846.54,845.54,0.88644198]
[1766149071466,1.17677324,846.53,845.54,0.88644198]
[1766149071669,1.17677324,846.52,845.54,0.88644198]
[1766149071864,1.17677324,846.51,845.54,0.88644198]
[1766149072068,1.17677324,846.5,845.54,0.88644198]
[1766149072265,0.20559235,846.59,845.54,0.88644198]
[1766149072470,1.17690414,846.58,845.54,0.88644198]
[1766149072667,1.17690414,846.57,845.54,0.88644198]
[1766149072871,1.17690414,846.56,845.54,0.88644198]
[1766149073069,1.17690414,846.55,845.54,0.88644198]
[1766149073370,1.17690414,846.54,845.55,0.88644198]
[1766149073569,1.17690414,846.53,845.55,0.88644198]
[1766149073772,1.17690414,846.52,845.55,0.88644198]
[1766149074070,1.17690414,846.51,845.55,0.88644198]
[1766149074272,1.17690414,846.5,845.55,0.88644198]
[1766149074568,1.17690414,846.49,845.55,0.88644198]
[1766149074767,0.20559235,846.59,845.55,0.88644198]
[1766149075072,1.17708309,846.58,845.55,0.88644198]
[1766149075265,1.17708309,846.57,845.56,0.88644198]
[1766149075470,1.17708309,846.56,845.56,0.88644198]
[1766149075668,1.17708309,846.55,845.56,0.88644198]
[1766149075867,1.17708309,846.54,845.56,0.88644198]
[1766149076069,1.17708309,846.53,845.56,0.88644198]
[1766149076278,1.17708309,846.52,845.56,0.88644198]
[1766149076569,1.17708309,846.51,845.57,0.88644198]
[1766149076768,1.17708309,846.5,845.57,0.88644198]
[1766149077075,1.17708309,846.49,845.57,0.88644198]
[1766149077269,1.17708309,846.48,845.57,0.88644198]
[1766149077469,1.17708309,846.47,845.57,0.88644198]
[1766149077675,0.20559235,846.59,845.57,0.88644198]
[1766149077874,1.17766129,846.58,845.57,0.88644198]
[1766149078171,1.17766129,846.57,845.57,0.88644198]
[1766149078369,1.17766129,846.56,845.58,0.88644198]
[1766149078569,1.17766129,846.55,845.58,0.88644198]
[1766149078775,1.17766129,846.54,845.58,0.88644198]
[1766149078968,1.17766129,846.53,845.58,0.88644198]
[1766149079172,1.17766129,846.52,845.58,0.88644198]
[1766149079372,1.17766129,846.51,845.59,0.88644198]
[1766149079575,1.17766129,846.5,845.59,0.88644198]
[1766149079784,1.17766129,846.49,845.59,0.88644198]
[1766149080078,1.17766129,846.48,845.59,0.88644198]
[1766149080276,1.17766129,846.47,845.59,0.88644198]
[1766149080479,0.20559235,846.59,845.59,0.88644198]
[1766149080480,1.17766129,846.46,845.59,0.88644198]
[1766149080680,1.17766129,846.45,845.59,0.88644198]
[1766149080880,0.20559235,846.59,845.59,0.88644198]
[1766149081080,1.17802749,846.58,845.59,0.88644198]
[1766149081377,1.17802749,846.57,845.6,0.88644198]
[1766149081681,1.17802749,846.56,845.6,0.88644198]
[1766149081885,1.17802749,846.55,845.6,0.88644198]
[1766149082184,1.17802749,846.54,845.6,0.88644198]
[1766149082383,1.17802749,846.53,845.61,0.88644198]
[1766149082584,1.17802749,846.52,845.5,0.88644198]
[1766149082784,1.17802749,846.51,845.47,0.88644198]
[1766149083085,1.17802749,846.5,845.47,0.88644198]
[1766149083380,1.17802749,846.49,845.47,0.88644198]
[1766149083689,1.17802749,846.48,845.47,0.88644198]
[1766149083879,1.17802749,846.47,845.47,0.88644198]
[1766149084083,1.17802749,846.46,845.47,0.88644198]
[1766149084283,1.17620544,846.53,845.48,0.88644198]
[1766149084284,1.17802749,846.45,845.48,0.88644198]
[1766149084482,1.17802749,846.44,845.48,0.88644198]
[1766149084682,0.20559235,846.59,845.41,0.88644198]
[1766149084683,1.17802749,846.43,845.41,0.88644198]
[1766149084880,2.35423293,846.42,845.37,0.88644198]
[1766149085083,1.17802749,846.41,845.37,0.88644198]
[1766149085283,2.35423293,846.41,845.38,0.88644198]
[1766149085584,2.35423293,846.41,845.07,0.20570841]
[1766149085585,1.17802749,846.4,845.37,0.88644198]
[1766149085781,1.17802749,846.39,845.37,0.88644198]
[1766149085981,1.17802749,846.38,845.36,0.88644198]
[1766149086184,1.17802749,846.37,845.36,0.88644198]
[1766149086384,1.17802749,846.36,845.36,0.88644198]
[1766149086584,1.17802749,846.35,845.36,0.88644198]
[1766149086783,1.17802749,846.34,845.36,0.88644198]
[1766149086989,1.17802749,846.33,845.36,0.88644198]
[1766149087184,1.17802749,846.32,845.36,0.88644198]
[1766149087482,0.20559235,846.59,845.36,0.88644198]
[1766149087483,1.17802749,846.31,845.36,0.88644198]
[1766149087684,1.17802749,846.3,845.36,0.88644198]
[1766149087988,1.17802749,846.29,845.36,0.88644198]
[1766149088288,1.17802749,846.28,845.35,0.88644198]
[1766149088489,1.17802749,846.27,845.35,0.88644198]
[1766149088791,1.17802749,846.26,845.35,0.88644198]
[1766149088987,1.17802749,846.25,845.35,0.88644198]
[1766149089285,1.17802749,846.24,845.34,0.88644198]
[1766149089486,1.17802749,846.23,845.34,0.88644198]
[1766149089683,1.17802749,846.22,845.34,0.88644198]
[1766149089883,1.17802749,846.21,845.34,0.88644198]
[1766149090087,1.17620544,846.44,845.34,0.88644198]
[1766149090283,1.17743326,846.43,845.33,0.88644198]
[1766149090489,1.17743326,846.42,845.34,0.88644198]
[1766149090786,1.17743326,846.41,845.34,0.88644198]
[1766149090985,1.17743326,846.4,845.34,0.88644198]
[1766149091185,1.17743326,846.39,845.34,0.88644198]
[1766149091385,1.17743326,846.38,845.33,0.88644198]
[1766149091589,1.17743326,846.37,845.33,0.88644198]
[1766149091889,1.17743326,846.36,845.33,0.88644198]
[1766149092089,1.17743326,846.35,845.33,0.88644198]
[1766149092385,1.17743326,846.34,845.32,0.88644198]
[1766149092689,1.17743326,846.33,845.32,0.88644198]
[1766149092888,1.17743326,846.32,845.32,0.88644198]
[1766149093189,1.17743326,846.31,845.32,0.88456958]
[1766149093484,1.17743326,846.3,845.32,0.88456958]
[1766149093688,1.17743326,846.29,845.32,0.88456958]
[1766149093888,1.17743326,846.28,845.32,0.88456958]
[1766149094088,1.17743326,846.27,845.32,0.88456958]
[1766149094284,1.17620544,846.52,845.36,0.88456958]
[1766149094488,1.1768623,846.51,845.36,0.88456958]
[1766149094686,1.1768623,846.5,845.36,0.88456958]
[1766149094888,1.1768623,846.49,845.36,0.88456958]
[1766149095089,1.1768623,846.48,845.36,0.88456958]
[1766149095388,1.1768623,846.47,845.36,0.88456958]
[1766149095589,1.1768623,846.46,845.36,0.88456958]
[1766149095885,1.1768623,846.45,845.36,0.88456958]
[1766149096184,1.1768623,846.44,845.36,0.88456958]
[1766149096388,1.1768623,846.43,845.36,0.88456958]
[1766149096586,1.1768623,846.42,845.36,0.88456958]
[1766149096789,1.1768623,846.41,845.36,0.88456958]
[1766149097085,1.1768623,846.4,845.36,0.88456958]
[1766149097285,1.1768623,846.39,845.35,0.88456958]
[1766149097490,1.1768623,846.38,845.35,0.88456958]
[1766149097686,1.1768623,846.37,845.35,0.88456958]
[1766149097990,1.1768623,846.36,845.35,0.88456958]
[1766149098185,1.1768623,846.35,845.35,0.88456958]
[1766149098384,1.1768623,846.34,845.35,0.88456958]
[1766149098589,1.1768623,846.33,845.35,0.88456958]
[1766149098787,1.1768623,846.32,845.35,0.88456958]
[1766149098988,1.1768623,846.31,845.35,0.88456958]
[1766149099287,1.1768623,846.3,845.35,0.88456958]
[1766149099589,1.1768623,846.29,845.35,0.88456958]
[1766149099791,1.17620544,846.53,845.35,0.88456958]
[1766149099985,1.17586353,846.52,845.35,0.88456958]
[1766149100188,1.17586353,846.51,845.35,0.88456958]
[1766149100387,1.17586353,846.5,845.35,0.88456958]
[1766149100585,1.17620544,846.53,845.35,0.88456958]